bitfinex-derivatives/quotes_SOLF0:USTF0_20250703
["timestamp","ask_amount","ask_price","bid_price","bid_amount"]
[1751563406856,11.52317225,151.08,151.05,51.9977]
[1751563407054,5.4295332,151.07,151.05,51.9977]
[1751563407255,11.52317225,151.08,151.05,51.9977]
[1751563407455,5.42922076,151.07,151.05,51.9977]
[1751563407657,11.52317225,151.08,151.05,51.9977]
[1751563407956,5.42922076,151.07,151.05,51.9977]
[1751563408156,11.52317225,151.08,151.05,51.9977]
[1751563408354,12.04633031,151.07,151.05,51.9977]
[1751563408554,6.6172,151.07,151.05,51.9977]
[1751563409056,11.52307225,151.08,151.05,51.9977]
[1751563409258,5.41957654,151.07,151.05,51.9977]
[1751563409456,11.52307225,151.08,151.05,51.9977]
[1751563409759,5.41938925,151.07,151.05,51.9977]
[1751563409958,11.52307225,151.08,151.05,51.9977]
[1751563410159,5.41938925,151.07,151.05,51.9977]
[1751563410358,6.6171,151.07,151.05,51.9977]
[1751563411761,6.6171,151.07,151.05,45.38]
[1751563413362,6.6171,151.07,151.05,51.9979]
[1751563414760,6.6176,151.06,151.05,45.38]
[1751563414959,6.6176,151.06,151.04,197.8381]
[1751563415660,6.6176,151.06,151.04,6.6181]
[1751563416367,6.6173,151.07,151.03,191.22]
[1751563416962,6.66441956,151.07,151.04,6.6181]
[1751563417364,6.66441956,151.07,151.04,197.8381]
[1751563417565,6.6176,151.06,151.04,197.8381]
[1751563418666,0.04711956,151.07,151.03,197.8388]
[1751563419064,5.41776582,151.06,151.03,197.8388]
[1751563419264,4.90627225,151.06,151.03,197.8388]
[1751563420060,6.618,151.05,151.03,197.8388]
[1751563420461,4.90627225,151.06,151.04,6.6183]
[1751563421269,11.52407225,151.06,151.04,6.6183]
[1751563422768,6.618,151.05,151.03,197.8386]
[1751563423268,4.90627225,151.06,151.03,191.22]
[1751563423765,11.52407225,151.06,151.04,6.6182]
[1751563425370,4.90627225,151.06,151.03,191.22]
[1751563425866,11.52387225,151.06,151.04,6.6181]
[1751563427864,6.66441956,151.07,151.04,6.6181]
[1751563428070,5.41359565,151.06,151.05,4.90627225]
[1751563428271,0.04711956,151.07,151.05,4.90627225]
[1751563428474,0.04711956,151.07,151.06,236.6]
[1751563428769,0.04711956,151.07,151.06,243.2176]
[1751563431471,0.04711956,151.07,151.06,45.38]
[1751563431766,5.46260218,151.07,151.06,236.6]
[1751563432271,5.46260218,151.07,151.06,45.38]
[1751563432466,12.08000218,151.07,151.05,191.22]
[1751563432665,6.66451956,151.07,151.05,191.22]
[1751563433774,5.43658097,151.06,151.05,191.22]
[1751563434268,5.43658097,151.06,151.04,6.6181]
[1751563434470,6.66451956,151.07,151.04,197.8381]
[1751563434668,5.43778949,151.06,151.04,197.8381]
[1751563434868,6.66451956,151.07,151.04,197.8381]
[1751563435173,5.43778949,151.06,151.04,197.8381]
[1751563435369,6.66451956,151.07,151.04,197.8381]
[1751563435569,5.43917642,151.06,151.04,197.8381]
[1751563435770,6.66451956,151.07,151.04,197.8381]
[1751563436065,5.43917642,151.06,151.04,197.8381]
[1751563436272,6.66451956,151.07,151.04,197.8381]
[1751563436470,5.43938254,151.06,151.04,197.8381]
[1751563436672,6.66451956,151.07,151.04,197.8381]
[1751563436877,5.43938254,151.06,151.04,6.6181]
[1751563437076,6.66451956,151.07,151.04,197.8181]
[1751563437274,5.42548875,151.06,151.04,197.8181]
[1751563437474,6.66451956,151.07,151.04,197.8181]
[1751563437676,5.42564343,151.06,151.04,197.8181]
[1751563437876,6.66451956,151.07,151.04,197.8181]
[1751563438077,5.42564343,151.06,151.04,197.8181]
[1751563438274,6.66451956,151.07,151.04,197.8181]
[1751563438477,5.42588433,151.06,151.04,197.8181]
[1751563438677,6.66451956,151.07,151.04,197.8181]
[1751563438976,5.42588433,151.06,151.04,197.8181]
[1751563439173,6.66451956,151.07,151.04,197.8181]
[1751563439371,5.42614423,151.06,151.04,197.8181]
[1751563439570,6.66451956,151.07,151.04,197.8181]
[1751563439776,6.618,151.05,151.03,45.38]
[1751563439978,6.618,151.05,151.03,236.58]
[1751563440178,4.90627225,151.06,151.03,243.1987]
[1751563440378,5.4267908,151.05,151.03,236.58]
[1751563440578,4.90627225,151.06,151.03,236.58]
[1751563440782,12.0450908,151.05,151.03,236.58]
[1751563440977,6.6183,151.05,151.03,236.58]
[1751563441479,6.6183,151.05,151.03,51.9988]
[1751563441683,6.6183,151.05,151.03,243.1988]
[1751563444084,11.52407225,151.06,151.03,243.1988]
[1751563444377,5.42480224,151.05,151.04,6.6184]
[1751563446884,0.04711956,151.07,151.05,6.6178]
[1751563447084,5.42470245,151.06,151.05,197.8178]
[1751563447986,0.04711956,151.07,151.06,6.6176]
[1751563448185,5.47591924,151.07,151.06,6.6176]
[1751563449286,0.04711956,151.07,151.06,6.6176]
[1751563451284,17.39331983,151.12,151.06,6.6176]
[1751563451490,5.42682622,151.11,151.07,191.2]
[1751563451689,5.42682622,151.1,151.07,191.2]
[1751563451889,5.42682622,151.09,151.07,191.2]
[1751563452194,12.80431983,151.12,151.09,6.6159]
[1751563452387,5.43517387,151.11,151.09,6.6159]
[1751563452684,5.43517387,151.1,151.09,6.6159]
[1751563453490,5.43517387,151.1,151.08,6.66115457]
[1751563453687,5.43517387,151.09,151.08,6.66115457]
[1751563453882,5.43517387,151.09,151.08,0.04475457]
[1751563460494,12.05137387,151.09,151.08,0.04475457]
[1751563463694,16.95764612,151.09,151.08,0.04475457]
[1751563466005,5.43517387,151.09,151.08,0.04475457]
[1751563468206,12.05137387,151.09,151.08,0.04475457]
[1751563468505,5.43517387,151.09,151.08,0.04475457]
[1751563470609,12.05137387,151.09,151.08,0.04475457]
[1751563478117,6.6162,151.09,151.08,0.04475457]
[1751563478315,12.05398036,151.09,151.08,0.04475457]
[1751563483813,15.19340485,151.09,151.08,0.04475457]
[1751563489617,6.6177,151.06,151.03,45.38]
[1751563489822,9.75712449,151.06,151.03,45.38]
[1751563490029,9.75801275,151.06,151.03,45.38]
[1751563490324,9.75801275,151.06,151.03,51.9986]
[1751563490721,9.75801158,151.06,151.03,51.9986]
[1751563490923,9.75841158,151.05,151.03,51.9986]
[1751563491121,3.14031158,151.04,151.03,45.38]
[1751563491321,3.14031158,151.04,150.99,811.00031158]
[1751563491520,3.14031158,151.03,150.99,811.00031158]
[1751563491716,3.14031158,151.03,151.0,6.6201]
[1751563491917,3.14031158,151.02,151.0,6.6201]
[1751563492115,9.76001158,151.01,150.99,45.34]
[1751563492627,3.14031158,151.01,150.99,45.34]
[1751563493128,3.14031158,151.01,150.99,51.9604]
[1751563493824,4.95171998,151.03,150.99,51.9604]
[1751563494019,12.06397962,151.02,151.0,6.6201]
[1751563494226,4.95171998,151.03,151.0,6.6201]
[1751563494424,5.44143981,151.02,150.99,45.34]
[1751563494626,5.44143981,151.01,150.99,45.34]
[1751563494826,6.660758,151.03,151.0,6.6199]
[1751563495125,5.44152175,151.02,151.0,6.6199]
[1751563495327,6.660758,151.03,151.0,6.6199]
[1751563495528,5.43862258,151.02,151.0,6.6199]
[1751563495831,6.660758,151.03,151.0,6.6199]
[1751563496035,5.42931909,151.02,151.0,6.6199]
[1751563496226,6.660758,151.03,151.0,6.6199]
[1751563496422,5.42702494,151.02,151.0,6.6199]
[1751563496626,6.660758,151.03,151.0,6.6199]
[1751563496923,0.041858,151.03,151.01,6.6197]
[1751563497925,4.95171998,151.03,150.99,45.34]
[1751563498531,12.04382788,151.02,150.99,51.9604]
[1751563498729,6.6196,151.02,150.99,51.9604]
[1751563499534,11.57081998,151.03,151.0,6.6198]
[1751563503734,0.041858,151.03,151.01,6.6197]
[1751563504739,6.660858,151.03,151.01,6.6197]
[1751563505833,0.041858,151.03,151.02,6.6193]
[1751563506041,0.041858,151.03,150.99,50.24986198]
[1751563506338,0.041858,151.03,151.02,6.6193]
[1751563509839,0.041858,151.03,151.01,6.6195]
[1751563512341,6.660858,151.03,151.0,6.6201]
[1751563513645,6.6194,151.02,150.99,51.9605]
[1751563513838,6.6194,151.02,150.99,55.10196834]
[1751563515339,3.14146834,151.02,150.99,45.34]
[1751563515638,0.041858,151.03,151.0,3.14146834]
[1751563515846,0.041858,151.03,150.99,45.34]
[1751563516045,0.041858,151.03,151.0,3.14146834]
[1751563516545,6.660858,151.03,151.0,9.76146834]
[1751563519647,6.660858,151.03,151.0,6.62]
[1751563519946,6.660858,151.03,151.0,9.76146834]
[1751563520849,6.660858,151.03,151.01,6.6197]
[1751563521149,6.660858,151.03,151.0,3.14146834]
[1751563521347,6.660858,151.03,151.01,3.14146834]
[1751563523738,6.660858,151.03,151.0,9.76126834]
[1751563524348,6.660858,151.03,151.01,6.6197]
[1751563524649,0.041858,151.03,151.01,3.14146834]
[1751563524847,0.041858,151.03,151.0,3.14146834]
[1751563525045,3.18332634,151.03,150.99,45.34]
[1751563525349,3.14146834,151.01,150.99,45.34]
[1751563525738,6.62,151.01,150.99,45.34]
[1751563525944,3.18332634,151.03,150.99,45.34]
[1751563526247,5.42014846,151.02,151.0,6.62]
[1751563526448,9.80242634,151.03,151.0,6.62]
[1751563526652,5.42073832,151.02,151.0,6.62]
[1751563526947,0.041858,151.03,151.01,6.6197]
[1751563527148,5.42073832,151.02,151.0,3.14146834]
[1751563527347,0.041858,151.03,151.0,3.14146834]
[1751563528146,0.041858,151.03,151.01,6.6197]
[1751563533853,3.14146834,151.02,150.99,45.34]
[1751563534054,3.14146834,151.02,150.99,48.48146834]
[1751563534655,3.14146834,151.02,151.0,6.62]
[1751563535854,9.80242634,151.03,151.0,6.62]
[1751563536056,5.43181827,151.02,151.0,6.62]
[1751563536260,9.80242634,151.03,151.01,6.6197]
[1751563536451,5.43380516,151.02,151.0,3.14146834]
[1751563536651,9.80242634,151.03,151.0,3.14146834]
[1751563536853,5.43380516,151.02,151.0,9.76136834]
[1751563537053,9.80242634,151.03,151.0,9.76136834]
[1751563537249,5.43462019,151.02,151.0,9.76136834]
[1751563537450,9.80242634,151.03,151.0,9.76136834]
[1751563537648,5.43470238,151.02,151.0,9.76136834]
[1751563537849,9.80242634,151.03,151.0,9.76136834]
[1751563538158,5.43470238,151.02,151.0,9.76136834]
[1751563538459,9.80242634,151.03,151.0,9.76136834]
[1751563538655,9.80242634,151.03,151.0,6.6199]
[1751563538862,9.80242634,151.03,151.0,9.76136834]
[1751563539160,5.42557649,151.02,151.0,9.76136834]
[1751563539562,9.80242634,151.03,151.0,6.6199]
[1751563539762,9.80242634,151.03,151.0,9.76136834]
[1751563541864,5.42586717,151.02,151.0,9.76136834]
[1751563542065,9.80242634,151.03,151.0,6.6199]
[1751563542365,5.42589899,151.02,151.0,6.6199]
[1751563542668,9.80242634,151.03,151.0,6.6199]
[1751563542864,5.42597564,151.02,151.0,6.6199]
[1751563543064,9.80242634,151.03,151.0,6.6199]
[1751563543364,5.43062444,151.02,151.0,6.6199]
[1751563543563,9.80242634,151.03,151.0,6.6199]
[1751563543863,5.4306995,151.02,151.0,6.6199]
[1751563544059,9.80242634,151.03,151.0,6.6199]
[1751563544265,5.43261994,151.02,151.0,6.6199]
[1751563544465,9.80242634,151.03,151.0,6.6199]
[1751563544665,5.43268892,151.02,151.0,6.6199]
[1751563544866,9.80242634,151.03,151.0,6.6199]
[1751563545066,5.43268892,151.02,151.0,6.6199]
[1751563545367,9.80242634,151.03,151.0,6.6199]
[1751563545567,5.43275579,151.02,151.0,6.6199]
[1751563545868,9.80242634,151.03,151.0,6.6199]
[1751563546168,5.43275579,151.02,151.0,6.6199]
[1751563546362,5.43275579,151.01,151.0,6.6199]
[1751563548563,12.05265579,151.01,150.99,51.9605]
[1751563548769,6.6199,151.01,150.99,236.44]
[1751563548969,6.6199,151.01,150.99,45.34]
[1751563549365,9.76136834,151.01,150.99,45.34]
[1751563549766,5.43411717,151.0,150.99,45.34]
[1751563552466,5.43411717,151.0,150.99,51.9606]
[1751563556476,4.99032058,151.0,150.99,55.10206834]
[1751563556681,5.8e-05,151.03,151.02,6.6193]
[1751563556877,123.88227469,151.1,151.02,194.22146834]
[1751563557082,2.3336,151.1,151.09,9.75776834]
[1751563557688,2.3336,151.1,151.09,6.6163]
[1751563558284,2.3336,151.1,151.08,194.26959788]
[1751563558680,2.3336,151.1,151.08,191.12812954]
[1751563558887,3.14146834,151.09,151.08,191.12812954]
[1751563559279,9.75776834,151.09,151.08,191.12812954]
[1751563559885,6.6163,151.09,151.08,191.12812954]
[1751563560088,6.6163,151.09,151.08,0.04812954]
[1751563564687,6.6163,151.09,151.05,191.04]
[1751563564688,7.23863954,151.1,151.01,571.88]
[1751563564988,4.90503954,151.03,151.0,45.32]
[1751563565287,6.6198,151.01,151.0,45.32]
[1751563566495,4.90503954,151.01,150.97,191.02]
[1751563567096,6.6214,150.98,150.97,191.02]
[1751563568599,6.6215,150.97,150.96,45.32]
[1751563568896,6.6215,150.97,150.96,236.36]
[1751563569099,6.6215,150.97,150.96,45.32]
[1751563569289,6.6215,150.97,150.96,236.36]
[1751563569688,0.04232553,150.98,150.94,617.04]
[1751563569888,0.04232553,150.98,150.95,191.04]
[1751563570297,6.6223,150.96,150.94,617.04]
[1751563570497,6.6223,150.96,150.95,191.04]
[1751563571298,6.6224,150.95,150.94,617.04]
[1751563571499,6.6224,150.95,150.94,808.08]
[1751563571698,0.04232553,150.98,150.94,808.08]
[1751563572100,6.6224,150.96,150.94,808.08]
[1751563572496,0.04232553,150.98,150.94,808.08]
[1751563572497,6.6224,150.95,150.94,617.04]
[1751563572701,6.6224,150.95,150.94,808.08]
[1751563572897,6.6224,150.95,150.94,617.04]
[1751563573103,6.6224,150.95,150.94,808.08]
[1751563574402,6.6224,150.95,150.94,236.38]
[1751563574602,6.6224,150.95,150.94,45.32]
[1751563574804,6.6224,150.95,150.94,236.38]
[1751563575204,6.6224,150.95,150.94,45.32]
[1751563575399,6.6224,150.95,150.94,236.38]
[1751563576703,6.6224,150.95,150.94,236.4]
[1751563577901,6.6221,150.96,150.94,236.4]
[1751563578205,4.90503954,150.97,150.94,236.4]
[1751563578399,6.6223,150.96,150.94,236.4]
[1751563578598,4.90503954,150.97,150.94,236.4]
[1751563579607,6.6224,150.95,150.94,236.4]
[1751563583012,0.04232553,150.98,150.94,241.30503954]
[1751563583610,0.04232553,150.98,150.96,6.6217]
[1751563583811,0.04232553,150.98,150.97,191.08]
[1751563584606,6.66342553,150.98,150.97,191.08]
[1751563607823,0.04232553,150.98,150.97,191.08]
[1751563608430,0.04232553,150.98,150.97,197.7015]
[1751563617729,0.04232553,150.98,150.97,200.84316877]
[1751563621434,2.47728336,151.04,150.97,194.22166877]
[1751563621634,6.15898304,151.08,151.03,3.14166877]
[1751563621830,9.30065181,151.08,151.05,3.14166877]
[1751563622025,8.9137,151.06,151.05,3.14166877]
[1751563622236,6.6178,151.06,151.05,3.14166877]
[1751563622532,6.6178,151.06,151.04,194.12166877]
[1751563623733,6.6178,151.06,151.04,190.98]
[1751563627239,7.0853223,151.09,151.03,0.04435286]
[1751563627240,4.9056223,151.05,151.03,0.04435286]
[1751563627448,4.9056223,151.06,151.03,0.04435286]
[1751563627944,6.6184,151.04,151.03,0.04435286]
[1751563635345,2.2688,151.05,151.03,0.04435286]
[1751563635647,0.04460697,151.07,151.03,0.04435286]
[1751563635841,0.04460697,151.07,151.03,6.66325286]
[1751563636348,6.6181,151.05,151.03,6.66325286]
[1751563636542,6.6181,151.05,151.03,0.04435286]
[1751563638246,6.6184,151.04,151.03,0.04435286]
[1751563639745,6.6182,151.05,151.03,0.04435286]
[1751563640750,6.6177,151.06,151.03,6.66315286]
[1751563640941,4.95022927,151.07,151.03,6.66315286]
[1751563641448,6.6182,151.05,151.03,0.04435286]
[1751563642148,6.6182,151.05,151.03,6.66315286]
[1751563642547,6.6182,151.05,151.03,0.04435286]
[1751563643250,6.6182,151.05,151.03,6.66315286]
[1751563644040,6.6182,151.05,151.03,0.04435286]
[1751563644851,6.6177,151.06,151.03,6.66305286]
[1751563645247,0.04460697,151.07,151.03,6.66305286]
[1751563645550,6.6177,151.06,151.03,6.66305286]
[1751563646846,6.6177,151.06,151.04,6.6184]
[1751563647051,6.6177,151.06,151.03,0.04435286]
[1751563647052,0.04460697,151.07,151.05,190.88]
[1751563647346,0.04460697,151.07,151.05,241.0456223]
[1751563647548,0.04460697,151.07,151.06,6.6176]
[1751563649142,0.04460697,151.07,151.05,241.0456223]
[1751563649744,0.04460697,151.07,151.05,247.6635223]
[1751563651546,0.04460697,151.07,151.05,242.7579]
[1751563651741,0.04460697,151.07,151.05,247.6635223]
[1751563653245,0.04460697,151.07,151.05,236.14]
[1751563653647,0.04460697,151.07,151.05,45.26]
[1751563653853,0.04460697,151.07,151.06,190.84]
[1751563654049,6.66200697,151.07,151.06,190.84]
[1751563655951,0.04460697,151.07,151.06,190.84]
[1751563656748,6.66170697,151.07,151.06,190.84]
[1751563661656,0.04460697,151.07,151.06,197.4576]
[1751563662657,0.04460697,151.07,151.06,190.84]
[1751563665256,6.66170697,151.07,151.06,190.84]
[1751563668359,6.6176,151.06,151.05,45.26]
[1751563668660,6.6176,151.06,151.05,236.06]
[1751563670651,0.04460697,151.07,151.05,236.06]
[1751563670652,6.66190697,151.07,151.05,242.6779]
[1751563670857,0.04460697,151.07,151.05,247.5835223]
[1751563671655,6.66190697,151.07,151.05,240.9656223]
[1751563671857,0.04460697,151.07,151.05,45.26]
[1751563672058,10.31039193,151.06,151.03,0.04435286]
[1751563672265,6.6184,151.04,151.03,190.82435286]
[1751563672561,12.0243632,151.04,151.03,190.82435286]
[1751563674264,0.04460697,151.07,151.03,195.72997516]
[1751563674661,6.6176,151.06,151.03,202.34867516]
[1751563677069,0.04460697,151.07,151.03,195.72997516]
[1751563677260,5.40181551,151.06,151.03,195.72997516]
[1751563677461,0.04460697,151.07,151.03,195.72997516]
[1751563677666,5.40236297,151.06,151.05,6.6179]
[1751563677966,0.04460697,151.07,151.05,6.6179]
[1751563678260,0.04460697,151.07,151.06,190.8]
[1751563678465,5.43842202,151.07,151.06,190.8]
[1751563680764,5.43842202,151.07,151.06,197.4176]
[1751563680965,5.43842202,151.07,151.06,190.8]
[1751563681870,0.04460697,151.07,151.06,195.7056223]
[1751563682669,0.04460697,151.07,151.06,202.3232223]
[1751563690377,0.04460697,151.07,151.06,197.4176]
[1751563690570,0.04460697,151.07,151.06,202.3232223]
[1751563690767,0.04460697,151.07,151.06,195.6656223]
[1751563691477,5.4673286,151.07,151.06,190.76]
[1751563692167,6.6179,151.06,151.04,45.22]
[1751563692372,0.04460697,151.07,151.05,190.76]
[1751563692777,6.6176,151.06,151.05,190.76]
[1751563694879,6.6176,151.06,151.04,45.22]
[1751563695079,6.6176,151.06,151.05,190.76]
[1751563698379,6.618,151.05,151.04,45.22]
[1751563698580,6.618,151.05,151.04,235.98]
[1751563701082,6.618,151.05,151.04,45.22]
[1751563701285,6.618,151.05,151.03,0.04435286]
[1751563701286,6.6184,151.04,151.03,0.04435286]
[1751563701486,5.40594439,151.04,151.03,0.04435286]
[1751563701679,12.02434439,151.04,151.03,0.04435286]
[1751563702385,2.3553,151.06,151.03,0.04435286]
[1751563702780,6.66210697,151.07,151.04,6.6184]
[1751563702980,5.40384481,151.06,151.05,190.78]
[1751563703389,12.02144481,151.06,151.05,190.78]
[1751563706882,5.40384481,151.06,151.05,190.78]
[1751563707390,12.02144481,151.06,151.05,190.78]
[1751563707888,12.02144481,151.06,151.03,6.66305286]
[1751563708089,5.40384481,151.05,151.03,197.42305286]
[1751563708388,6.6176,151.06,151.03,197.42305286]
[1751563708588,5.39843602,151.05,151.03,197.42305286]
[1751563708788,6.66190697,151.07,151.04,6.6184]
[1751563708989,5.39843535,151.06,151.04,6.6184]
[1751563709191,5.39843535,151.05,151.04,6.6184]
[1751563709789,5.39843535,151.05,151.03,197.42305286]
[1751563709983,0.04460697,151.07,151.03,190.80435286]
[1751563710183,5.39823801,151.06,151.03,190.80435286]
[1751563710487,12.01653801,151.05,151.03,0.04435286]
[1751563710786,6.6183,151.05,151.03,0.04435286]
[1751563711185,6.6184,151.04,151.03,0.04435286]
[1751563711789,6.6182,151.05,151.03,0.04435286]
[1751563712185,2.2792,151.06,151.03,6.66325286]
[1751563712391,5.39778674,151.05,151.03,0.04435286]
[1751563712591,2.2792,151.06,151.03,0.04435286]
[1751563712785,12.01588474,151.05,151.03,0.04435286]
[1751563713090,2.2792,151.06,151.03,0.04435286]
[1751563713290,5.39780577,151.05,151.03,6.66305286]
[1751563713491,8.897,151.06,151.03,6.66305286]
[1751563713689,5.39767479,151.05,151.03,6.66305286]
[1751563713888,8.897,151.06,151.03,6.66305286]
[1751563714089,5.39767479,151.05,151.03,6.66305286]
[1751563714291,8.897,151.06,151.03,6.66305286]
[1751563714593,5.39758804,151.05,151.03,6.66305286]
[1751563714791,8.897,151.06,151.03,6.66305286]
[1751563714987,5.39758804,151.05,151.03,6.66305286]
[1751563715191,8.897,151.06,151.03,6.66305286]
[1751563715394,5.39760224,151.05,151.03,6.66305286]
[1751563715589,8.897,151.06,151.03,6.66305286]
[1751563715793,5.39316688,151.05,151.03,6.66305286]
[1751563715994,8.897,151.06,151.03,6.66305286]
[1751563716197,5.39316488,151.05,151.03,6.66305286]
[1751563716391,8.897,151.06,151.03,6.66305286]
[1751563716591,5.39287858,151.05,151.03,6.66305286]
[1751563716795,8.897,151.06,151.03,6.66305286]
[1751563716990,5.39266349,151.05,151.03,6.66305286]
[1751563717191,8.897,151.06,151.03,6.66305286]
[1751563717391,5.39308107,151.05,151.03,6.66305286]
[1751563717591,8.897,151.06,151.03,6.66305286]
[1751563717792,5.39773365,151.05,151.03,6.66305286]
[1751563717995,6.6181,151.05,151.03,6.66305286]
[1751563718194,6.6181,151.05,151.03,0.04435286]
[1751563718695,5.39838969,151.04,151.03,0.04435286]
[1751563719192,6.6181,151.05,151.03,6.66325286]
[1751563722800,6.6181,151.05,151.03,0.04435286]
[1751563723999,6.6181,151.05,151.03,6.66315286]
[1751563725401,8.897,151.06,151.03,6.66315286]
[1751563725697,5.39816593,151.05,151.03,6.66315286]
[1751563725896,2.2792,151.06,151.03,6.66315286]
[1751563726096,5.39808484,151.05,151.03,6.66315286]
[1751563726297,2.2792,151.06,151.03,6.66315286]
[1751563726491,5.39795467,151.05,151.03,6.66315286]
[1751563726697,6.618,151.05,151.03,6.66315286]
[1751563727801,8.897,151.06,151.03,6.66315286]
[1751563728103,5.39823856,151.05,151.03,6.66315286]
[1751563728296,8.897,151.06,151.03,6.66315286]
[1751563728495,5.39857728,151.05,151.03,6.66315286]
[1751563728698,8.897,151.06,151.03,6.66315286]
[1751563728898,5.39857728,151.05,151.03,6.66315286]
[1751563729199,8.897,151.06,151.03,197.40315286]
[1751563729400,5.39920545,151.05,151.03,197.40315286]
[1751563729601,8.897,151.06,151.03,197.40315286]
[1751563729807,5.39920545,151.05,151.03,197.40315286]
[1751563730098,8.897,151.06,151.03,197.40315286]
[1751563730302,5.39992177,151.05,151.03,197.40315286]
[1751563730505,8.897,151.06,151.03,197.40315286]
[1751563730707,5.39992177,151.05,151.03,197.40315286]
[1751563730895,8.897,151.06,151.03,197.40315286]
[1751563731307,5.40062794,151.05,151.03,197.40315286]
[1751563731506,8.897,151.06,151.03,197.40315286]
[1751563731706,5.40073747,151.05,151.03,197.40315286]
[1751563731906,8.897,151.06,151.03,200.54326706]
[1751563732106,5.40073814,151.05,151.03,200.54326706]
[1751563732307,8.897,151.06,151.03,9.80326706]
[1751563732518,5.4013697,151.05,151.03,200.54326706]
[1751563732708,8.897,151.06,151.03,200.54326706]
[1751563733007,5.39671556,151.05,151.03,200.54326706]
[1751563733209,8.897,151.06,151.03,200.54326706]
[1751563733508,5.39775484,151.05,151.03,200.54326706]
[1751563733709,8.897,151.06,151.03,200.54326706]
[1751563733908,5.39775484,151.05,151.03,200.54326706]
[1751563734108,8.897,151.06,151.03,200.54326706]
[1751563734312,5.39895897,151.05,151.03,200.54326706]
[1751563734504,8.897,151.06,151.03,200.54326706]
[1751563734705,5.39895897,151.05,151.03,200.54326706]
[1751563734905,8.897,151.06,151.03,200.54326706]
[1751563735107,5.39896014,151.05,151.03,200.54326706]
[1751563735310,5.39896014,151.04,151.03,200.54326706]
[1751563738516,5.39896014,151.04,151.03,197.40315286]
[1751563738703,5.39896014,151.04,151.03,200.54326706]
[1751563738903,0.04460697,151.07,151.05,6.6177]
[1751563739107,0.04460697,151.07,151.06,3.13903273]
[1751563739308,5.44726541,151.07,151.06,193.87903273]
[1751563739508,5.44726541,151.07,151.06,200.49663273]
[1751563741212,5.44726541,151.07,151.06,193.87903273]
[1751563741816,5.44726541,151.07,151.06,190.74]
[1751563742417,5.44726541,151.07,151.06,197.3576]
[1751563748018,5.44726541,151.07,151.06,190.74]
[1751563749823,5.46169103,151.07,151.06,190.74]
[1751563750924,5.46169103,151.07,151.06,197.3576]
[1751563751316,0.04460697,151.07,151.06,202.26169689]
[1751563752628,5.4597752,151.07,151.06,190.74]
[1751563753428,5.4597752,151.07,151.06,197.3576]
[1751563753725,0.04460697,151.07,151.06,197.3576]
[1751563756018,0.04460697,151.07,151.06,6.6176]
[1751563756222,0.04460697,151.07,151.06,197.2776]
[1751563760534,0.04460697,151.07,151.06,202.18169689]
[1751563760731,0.04460697,151.07,151.06,197.2776]
[1751563760935,0.04460697,151.07,151.06,190.66]
[1751563761135,12.07220799,151.07,151.04,190.66]
[1751563761436,0.04460697,151.07,151.05,6.6177]
[1751563762036,0.04460697,151.07,151.05,197.2777]
[1751563762335,0.04460697,151.07,151.05,6.6177]
[1751563762538,0.04460697,151.07,151.06,6.6176]
[1751563762737,5.4552443,151.07,151.06,6.6176]
[1751563763736,5.4552443,151.07,151.05,9.75725226]
[1751563763737,5.45543171,151.07,151.05,9.75725226]
[1751563764037,0.04460697,151.07,151.05,9.75725226]
[1751563765436,6.66170697,151.07,151.05,9.75725226]
[1751563768045,0.04460697,151.07,151.05,9.75725226]
[1751563768543,0.04460697,151.07,151.05,3.13955226]
[1751563768744,6.66180697,151.07,151.05,3.13955226]
[1751563769243,5.40849618,151.06,151.05,3.13955226]
[1751563769441,5.40849618,151.06,151.05,9.75745226]
[1751563769943,5.40849618,151.06,151.05,6.6179]
[1751563772046,5.40849618,151.06,151.05,9.75745226]
[1751563775452,5.40849618,151.06,151.05,200.39745226]
[1751563781354,0.04460697,151.07,151.06,6.6176]
[1751563781553,5.45889477,151.07,151.06,9.75715226]
[1751563781952,0.04460697,151.07,151.06,9.75715226]
[1751563784655,5.45830022,151.07,151.06,9.75715226]
[1751563789469,0.04460697,151.07,151.06,9.75715226]
[1751563795465,0.04460697,151.07,151.06,10.75715226]